fUSD/lending_fUSD_20240521
["ID","MTS","AMOUNT","RATE_DAILY","PERIOD"]
[327657872,1716286261319,-500.0,0.00035479,6]
[327657873,1716286261328,-500.0,0.00035479,6]
[327657874,1716286261337,-500.0,0.00035479,6]
[327657875,1716286261347,-500.0,0.00035479,6]
[327657876,1716286261356,-500.0,0.00035479,6]
[327657877,1716286261366,-500.0,0.00035479,6]
[327657878,1716286261376,-500.0,0.00035479,6]
[327657879,1716286261385,-500.0,0.00035479,6]
[327657880,1716286261396,-412.08193331,0.00035479,6]
[327657881,1716286261405,-500.0,0.00035479,6]
[327657882,1716286261414,-533.62742296,0.00035479,6]
[327657883,1716286261424,-1050.05,0.00035479,6]
[327657884,1716286261432,-1050.05,0.00035479,6]
[327657885,1716286261441,-1050.05,0.00035479,6]
[327657886,1716286261451,-1050.05,0.00035479,6]
[327657887,1716286261460,-1050.05,0.00035479,6]
[327657888,1716286261470,-1050.05,0.00035479,6]
[327657889,1716286261479,-1050.05,0.00035479,6]
[327657890,1716286261489,-500.0,0.00035479,6]
[327657891,1716286261498,-500.0,0.00035479,6]
[327657892,1716286261507,-1050.05,0.00035479,6]
[327657893,1716286261517,-874.35,0.00035479,6]
[327657894,1716286261527,-1050.05,0.00035479,6]
[327657895,1716286261536,-333.82281734,0.00035479,6]
[327657896,1716286261617,-874.35,0.00035479,6]
[327657897,1716286261628,-1050.05,0.00035479,6]
[327657898,1716286261637,-874.35,0.00035479,6]
[327657899,1716286261647,-1050.05,0.00035479,6]
[327657900,1716286261656,-874.35,0.00035479,6]
[327657901,1716286261666,-1050.05,0.00035479,6]
[327657902,1716286261675,-874.35,0.00035479,6]
[327657903,1716286261684,-1050.05,0.00035479,6]
[327657904,1716286261694,-874.35,0.00035479,6]
[327657905,1716286261703,-1050.05,0.00035479,6]
[327657906,1716286261712,-874.35,0.00035479,6]
[327657907,1716286261721,-874.35,0.00035479,6]
[327657908,1716286261731,-1050.05,0.00035479,6]
[327657909,1716286261740,-874.35,0.00035479,6]
[327657910,1716286261750,-1050.05,0.00035479,6]
[327657911,1716286261759,-398.46414896,0.00035479,6]
[327657912,1716286261769,-874.35,0.00035479,6]
[327657913,1716286261779,-1050.05,0.00035479,6]
[327657914,1716286261788,-874.35,0.00035479,6]
[327657915,1716286261797,-500.0,0.00035479,6]
[327657916,1716286261806,-1050.05,0.00035479,6]
[327657917,1716286261815,-874.35,0.00035479,6]
[327657918,1716286261824,-874.35,0.00035479,6]
[327657919,1716286261833,-1050.05,0.00035479,6]
[327657920,1716286261842,-874.35,0.00035479,6]
[327657921,1716286261851,-1050.05,0.00035479,6]
[327657922,1716286261861,-874.35,0.00035479,6]
[327657923,1716286261870,-1050.05,0.00035479,6]
[327657924,1716286261879,-1050.05,0.00035479,6]
[327657925,1716286261889,-874.35,0.00035479,6]
[327657926,1716286261898,-1050.05,0.00035479,6]
[327657927,1716286261907,-874.35,0.00035479,6]
[327657928,1716286261916,-1050.13037961,0.00035479,6]
[327657929,1716286261926,-874.35,0.00035479,6]
[327657930,1716286261936,-500.0,0.00035479,6]
[327657931,1716286261945,-874.35,0.00035479,6]
[327657932,1716286261955,-500.0,0.00035479,6]
[327657933,1716286261965,-874.35,0.00035479,6]
[327657934,1716286261975,-500.0,0.00035479,6]
[327657935,1716286261985,-874.35,0.00035479,6]
[327657936,1716286261994,-500.0,0.00035479,6]
[327657937,1716286262003,-874.35,0.00035479,6]
[327657938,1716286262013,-500.0,0.00035479,6]
[327657939,1716286262022,-874.35,0.00035479,6]
[327657940,1716286262032,-500.0,0.00035479,6]
[327657941,1716286262041,-874.46583439,0.00035479,6]
[327657942,1716286262052,-500.0,0.00035479,6]
[327657943,1716286262062,-500.0,0.00035479,6]
[327657944,1716286262071,-500.0,0.00035479,6]
[327657945,1716286262084,-500.0,0.00035479,6]
[327657946,1716286262096,-500.0,0.00035479,6]
[327657947,1716286262107,-500.0,0.00035479,6]
[327657948,1716286262118,-500.0,0.00035479,6]
[327657949,1716286262129,-500.0,0.00035479,6]
[327657950,1716286262139,-500.0,0.00035479,6]
[327657951,1716286262150,-500.0,0.00035479,6]
[327657952,1716286262162,-500.0,0.00035479,6]
[327657953,1716286262172,-1170.79,0.00035479,6]
[327657954,1716286262181,-500.0,0.00035479,6]
[327657955,1716286262191,-500.0,0.00035479,6]
[327657956,1716286262201,-1170.79,0.00035479,6]
[327657957,1716286262211,-153.60371307,0.00035479,6]
[327657958,1716286262221,-1170.79,0.00035479,6]
[327657959,1716286262230,-500.0,0.00035479,6]
[327657960,1716286262243,-630.09,0.00035479,6]
[327657961,1716286262253,-1170.79,0.00035479,6]
[327657962,1716286262263,-500.0,0.00035479,6]
[327657963,1716286262273,-630.09,0.00035479,6]
[327657964,1716286262284,-1170.79,0.00035479,6]
[327657965,1716286262294,-500.0,0.00035479,6]
[327657966,1716286262303,-630.09,0.00035479,6]
[327657967,1716286262311,-1623.41,0.00035479,6]
[327657968,1716286262322,-500.0,0.00035479,6]
[327657969,1716286262331,-500.0,0.00035479,6]
[327657970,1716286262341,-630.09,0.00035479,6]
[327657971,1716286262351,-1623.41,0.00035479,6]
[327657972,1716286262361,-500.0,0.00035479,6]
[327657973,1716286262372,-500.0,0.00035479,6]
[327657974,1716286262383,-630.09,0.00035479,6]
[327657975,1716286262394,-1623.41,0.00035479,6]
[327657976,1716286262404,-500.0,0.00035479,6]
[327657977,1716286262416,-500.0,0.00035479,6]
[327657978,1716286262427,-630.09,0.00035479,6]
[327657979,1716286262437,-1623.41,0.00035479,6]
[327657980,1716286262446,-500.0,0.00035479,6]
[327657981,1716286262455,-630.09,0.00035479,6]
[327657982,1716286262464,-500.0,0.00035479,6]
[327657983,1716286262473,-1623.41,0.00035479,6]
[327657984,1716286262482,-500.0,0.00035479,6]
[327657985,1716286262491,-630.09,0.00035479,6]
[327657986,1716286262500,-500.0,0.00035479,6]
[327657987,1716286262510,-1623.41,0.00035479,6]
[327657988,1716286262519,-500.0,0.00035479,6]
[327657989,1716286262529,-500.0,0.00035479,6]
[327657990,1716286262537,-630.09,0.00035479,6]
[327657991,1716286262546,-1623.41,0.00035479,6]
[327657992,1716286262556,-500.0,0.00035479,6]
[327657993,1716286262566,-500.0,0.00035479,6]
[327657994,1716286262575,-630.09,0.00035479,6]
[327657995,1716286262584,-1623.41,0.00035479,6]
[327657996,1716286262593,-500.0,0.00035479,6]
[327657997,1716286262602,-630.09,0.00035479,6]
[327657998,1716286262611,-500.0,0.00035479,6]
[327657999,1716286262620,-500.0,0.00035479,6]
[327658000,1716286262630,-630.09,0.00035479,6]
[327658001,1716286262639,-500.0,0.00035479,6]
[327658002,1716286262648,-1623.41,0.00035479,6]
[327658003,1716286262657,-500.0,0.00035479,6]
[327658004,1716286262666,-630.09,0.00035479,6]
[327658005,1716286262675,-500.0,0.00035479,6]
[327658006,1716286262684,-500.0,0.00035479,6]
[327658007,1716286262694,-630.09,0.00035479,6]
[327658008,1716286262703,-500.0,0.00035479,6]
[327658009,1716286262713,-500.0,0.00035479,6]
[327658010,1716286262722,-1623.41,0.00035479,6]
[327658011,1716286262731,-630.09,0.00035479,6]
[327658012,1716286262740,-500.0,0.00035479,6]
[327658013,1716286262749,-500.0,0.00035479,6]
[327658014,1716286262759,-630.09,0.00035479,6]
[327658015,1716286262768,-1623.41,0.00035479,6]
[327658016,1716286262777,-283.48499672,0.00035479,6]
[327658017,1716286262787,-500.0,0.00035479,6]
[327658018,1716286262796,-630.09,0.00035479,6]
[327658019,1716286262807,-1623.41,0.00035479,6]
[327658020,1716286262816,-500.0,0.00035479,6]
[327658021,1716286262826,-1623.41,0.00035479,6]
[327658022,1716286262835,-500.0,0.00035479,6]
[327658023,1716286262844,-1623.41,0.00035479,6]
[327658024,1716286262854,-500.0,0.00035479,6]
[327658025,1716286262863,-1623.41,0.00035479,6]
[327658026,1716286262873,-500.0,0.00035479,6]
[327658027,1716286262882,-1623.41,0.00035479,6]
[327658028,1716286262891,-545.87547138,0.00035479,6]
[327658029,1716286262900,-1623.41,0.00035479,6]
[327658030,1716286262909,-1623.41,0.00035479,6]
[327658031,1716286262918,-1623.41,0.00035479,6]
[327658032,1716286262927,-500.0,0.00035479,6]
[327658033,1716286262936,-1623.41,0.00035479,6]
[327658034,1716286262946,-500.0,0.00035479,6]
[327658035,1716286262955,-1623.41,0.00035479,6]
[327658036,1716286262964,-1623.41,0.00035479,6]
[327658037,1716286262973,-500.0,0.00035479,6]
[327658038,1716286262982,-500.0,0.00035479,6]
[327658039,1716286262992,-500.0,0.00035479,6]
[327658040,1716286263001,-1623.41,0.00035479,6]
[327658041,1716286263011,-500.0,0.00035479,6]
[327658042,1716286263020,-1290.84950714,0.00035479,6]
[327658043,1716286263210,-332.74461236,0.00035479,6]
[327658044,1716286263219,-500.0,0.00035479,6]
[327658045,1716286263228,-89.10538764,0.00035479,6]
[327658046,1716286263241,-410.89461236,0.00035479,6]
[327658047,1716286263250,-1149.46,0.00035479,6]
[327658048,1716286263259,-1044.44,0.00035479,6]
[327658049,1716286263269,-500.0,0.00035479,6]
[327658050,1716286263279,-457.72392319,0.00035479,6]
[327658051,1716286461280,-11150.7204,0.00019626,2]
[327658052,1716286621331,155.67,0.00013973,2]
[327658053,1716287112774,192.54,0.00013973,2]
[327658054,1716287148182,-423.50395095,0.00017259,2]
[327658055,1716287148203,-448.54956715,0.00017533,2]
[327658056,1716287345100,-421.969419,0.00017445,2]
[327658057,1716287345123,-10949.07006744,0.00017533,2]
[327658058,1716287359270,-10769.43,0.00017533,2]
[327658068,1716287407220,-1252.79236776,0.00017533,2]
[327658069,1716287407244,-150.0,0.00019725,2]
[327658075,1716287432580,-423.50395095,0.00029898,2]
[327658076,1716287432589,-163.61730037,0.00029899,2]
[327658077,1716287432599,-285.5578058,0.0003,2]
[327658078,1716287432610,-371.6925449,0.0003,2]
[327658079,1716287432622,-172.97943791,0.0003,2]
[327658080,1716287432631,-156.20713514,0.00030068,7]
[327658081,1716287432640,-150.99,0.00030068,2]
[327658082,1716287432650,-150.25232363,0.00031628,7]
[327658083,1716287432660,-890.34,0.00031781,2]
[327658084,1716287432669,-232.15980629,0.00031929,7]
[327658085,1716287432678,-922.0,0.000327,4]
[327658086,1716287432687,-1071.94067788,0.000328,4]
[327658087,1716287432698,-1818.05932212,0.000328,4]
[327658088,1716287432708,-153.67101316,0.00032966,7]
[327658089,1716287432717,-153.64,0.000335,2]
[327658090,1716287432726,-133.31921062,0.000335,2]
[327658091,1716287432738,-20.32078938,0.000335,2]
[327658092,1716287432747,-250.0,0.00033649,2]
[327658093,1716287432756,-250.0,0.0003368,115]
[327658094,1716287432765,-160.59,0.00033828,120]
[327658095,1716287432775,-296.74,0.00033828,2]
[327658096,1716287432784,-138.31921062,0.00033843,120]
[327658097,1716287432795,-18.08078938,0.00033843,120]
[327658098,1716287432805,-799.1509748,0.00033866,2]
[327658099,1716287432816,-37085.8490252,0.00033866,2]
[327658100,1716287432825,-784.1159,0.00033879,4]
[327658101,1716287432837,-890.34,0.00034045,2]
[327658102,1716287432848,-179.95,0.00034066,120]
[327658103,1716287432857,-1000.0,0.00034105,2]
[327658104,1716287432866,-150.0,0.00034135,2]
[327658105,1716287432876,-31085.95917471,0.00034135,60]
[327658106,1716287433748,-271.05628702,0.00030136,19]
[327658107,1716287433760,-789.68488428,0.00030136,19]
[327658108,1716287433771,-18600.44244,0.00030136,19]
[327658109,1716287433783,-5832.68047895,0.00030136,19]
[327658110,1716287433794,-540.396828,0.00030136,19]
[327658111,1716287433805,-499.40807414,0.00030136,19]
[327658112,1716287433816,-9100.0,0.00030136,19]
[327658113,1716287433827,-3000.0,0.00030136,19]
[327658229,1716287438796,-5939.17128298,0.00030136,19]
[327658233,1716287438808,-21102.37858111,0.00030136,19]
[327658236,1716287438818,-4313.928,0.00033866,2]
[327658239,1716287438827,-29351.35082529,0.00034135,60]
[327658241,1716287438838,-159.363497,0.00034247,14]
[327658243,1716287438847,-1000.0,0.000344,12]
[327658244,1716287438855,-2000.0,0.000345,12]
[327658245,1716287438865,-152.39399965,0.00034576,7]
[327658246,1716287438876,-3000.0,0.000346,12]
[327658247,1716287438885,-4000.0,0.000347,12]
[327658248,1716287438895,-5000.0,0.000348,12]
[327658249,1716287438905,-204.78051809,0.00034878,4]
[327658250,1716287438914,-442.86707915,0.00034879,4]
[327658251,1716287438924,-7442.57,0.0003488,5]
[327658252,1716287438933,-1000.0,0.000349,12]
[327658253,1716287438943,-155.56943574,0.00034942,7]
[327658254,1716287438952,-10000.0,0.00035,60]
[327658255,1716287438961,-159.363497,0.00035068,14]
[327658256,1716287438971,-420.84835,0.0003512,2]
[327658257,1716287438981,-153.71756079,0.00035124,3]
[327658258,1716287438991,-200.0,0.0003519,30]
[327658259,1716287439000,-500.0,0.00035194,10]
[327658260,1716287439010,-14337.0,0.000352,6]
[327658261,1716287439020,-6042.0456,0.00035204,2]
[327658262,1716287439030,-161.73963544,0.00035223,4]
[327658263,1716287439041,-300.0,0.00035244,2]
[327658264,1716287439051,-317.66980321,0.00035268,2]
[327658265,1716287439060,-317.66980319,0.00035283,2]
[327658266,1716287439070,-150.0,0.0003529,2]
[327658267,1716287439080,-317.66980319,0.00035297,2]
[327658268,1716287439090,-157.052119,0.00035298,32]
[327658269,1716287439099,-157.052119,0.00035308,34]
[327658270,1716287439109,-317.66980319,0.00035312,2]
[327658271,1716287439119,-1000.0,0.00035313,2]
[327658272,1716287439129,-177.38452581,0.00035313,2]
[327658273,1716287439139,-157.052119,0.00035318,34]
[327658274,1716287439148,-317.66980319,0.00035327,2]
[327658275,1716287439157,-157.052119,0.00035328,34]
[327658276,1716287439167,-150.0,0.00035333,2]
[327658277,1716287439176,-157.052119,0.00035338,36]
[327658278,1716287439186,-322.03836439,0.0003534,2]
[327658279,1716287439195,-317.66980319,0.00035341,2]
[327658280,1716287439205,-157.052119,0.00035348,36]
[327658281,1716287439214,-317.66980319,0.00035356,2]
[327658282,1716287439224,-5800.0,0.00035357,2]
[327658283,1716287439234,-157.052119,0.00035358,36]
[327658284,1716287439243,-5800.0,0.00035366,2]
[327658285,1716287439252,-157.052119,0.00035368,38]
[327658286,1716287439262,-317.66980319,0.00035371,2]
[327658287,1716287439284,-5800.0,0.00035375,2]
[327658288,1716287439294,-7372.3674,0.00035377,2]
[327658289,1716287439304,-470.51775299,0.00035377,2]
[327658290,1716287439752,-7972.27010341,0.00033676,2]
[327658291,1716287439765,-2027.72989659,0.00033676,2]
[327658292,1716287439774,-1465.0,0.00033866,2]
[327658293,1716287439785,-978.17895253,0.00035377,2]
[327658294,1716287439797,-25369.03339448,0.00035377,2]
[327658295,1716287439807,-3373.9696,0.00035377,2]
[327658296,1716287439816,-157.052119,0.00035378,38]
[327658297,1716287439826,-178.59455584,0.00035379,8]
[327658298,1716287439836,-170.60687671,0.00035379,2]
[327658299,1716287439846,-164.43986907,0.00035379,2]
[327658300,1716287439857,-1413.16979489,0.00035379,8]
[327658301,1716287439868,-208.40118173,0.00035379,2]
[327658302,1716287439879,-202.80582014,0.00035379,2]
[327658303,1716287439889,-731.907666,0.00035379,2]
[327658304,1716287439899,-1413.16979483,0.00035381,8]
[327658305,1716287439909,-1413.16979483,0.00035383,8]
[327658306,1716287439919,-5800.0,0.00035383,2]
[327658307,1716287439929,-1413.16979483,0.00035385,8]
[327658308,1716287439939,-317.66980319,0.00035385,2]
[327658309,1716287439955,-1413.16979483,0.00035387,8]
[327658312,1716287439965,-157.052119,0.00035388,38]
[327658315,1716287439976,-1413.16979483,0.00035389,8]
[327658317,1716287439986,-208.40118172,0.0003539,2]
[327658319,1716287439996,-202.80582013,0.0003539,2]
[327658321,1716287440006,-731.907666,0.0003539,2]
[327658323,1716287440016,-1413.16979483,0.0003539,8]
[327658325,1716287440026,-5800.0,0.00035392,2]
[327658327,1716287440036,-1413.16979483,0.00035392,8]
[327658329,1716287440045,-1413.16979483,0.00035394,8]
[327658331,1716287440055,-1413.16979483,0.00035396,8]
[327658333,1716287440065,-157.052119,0.00035398,40]
[327658335,1716287440074,-382.35028274,0.00035398,8]
[327658337,1716287440089,-928.56083405,0.00035398,8]
[327658339,1716287440172,-102.25867804,0.00035398,8]
[327658340,1716287440182,-174.89818196,0.000354,20]
[327658346,1716287442343,-309.10181804,0.000354,20]
[327658350,1716287442353,-349.0,0.000354,9]
[327658353,1716287442363,-3201.17326052,0.000354,2]
[327658357,1716287442374,-860.66929872,0.000354,2]
[327658389,1716287443071,-474.94673871,0.000354,2]
[327658438,1716287443885,-1069.86134212,0.000354,2]
[327658439,1716287444061,-193.34935993,0.000354,2]
[327658440,1716287444070,-160.0,0.000354,9]
[327658441,1716287444080,-170.6068767,0.000354,2]
[327658442,1716287444089,-238.31591262,0.000354,2]
[327658443,1716287444102,-2811.00000067,0.000354,2]
[327658444,1716287444114,-1950.68408671,0.000354,2]
[327658445,1716287444124,-164.43986907,0.000354,2]
[327658446,1716287444133,-1413.16979483,0.000354,8]
[327658447,1716287444142,-317.66980319,0.000354,2]
[327658448,1716287444151,-177.38452581,0.000354,2]
[327658449,1716287444161,-208.40118172,0.000354,2]
[327658450,1716287444170,-202.80582013,0.000354,2]
[327658451,1716287444179,-731.907666,0.000354,2]
[327658452,1716287444188,-153.32,0.00035402,2]
[327658453,1716287444198,-1500.0,0.00035406,2]
[327658454,1716287444207,-157.052119,0.00035408,40]
[327658455,1716287444216,-500.0,0.00035411,6]
[327658456,1716287444225,-507.71,0.00035411,6]
[327658457,1716287444235,-500.0,0.00035411,6]
[327658458,1716287444244,-500.0,0.00035411,6]
[327658459,1716287444255,-783.49,0.00035411,6]
[327658460,1716287444264,-1849.49,0.00035411,6]
[327658461,1716287444273,-500.0,0.00035411,6]
[327658462,1716287444282,-551.81,0.00035411,6]
[327658463,1716287444291,-513.16342754,0.00035411,6]
[327658464,1716287444300,-531.84338731,0.00035411,6]
[327658465,1716287444310,-202.76240443,0.00035411,6]
[327658466,1716287444319,-647.71145962,0.00035412,6]
[327658467,1716287444328,-622.41,0.00035412,6]
[327658468,1716287444337,-1450.71,0.00035412,6]
[327658469,1716287444347,-2521.04,0.00035412,6]
[327658470,1716287444357,-4413.18,0.00035412,6]
[327658471,1716287444367,-4087.23,0.00035412,6]
[327658472,1716287444376,-2337.42,0.00035412,6]
[327658473,1716287444385,-1869.04,0.00035412,6]
[327658474,1716287444394,-783.68,0.00035412,6]
[327658475,1716287444403,-5710.78,0.00035412,6]
[327658476,1716287444412,-4143.19,0.00035412,6]
[327658477,1716287444421,-1019.35,0.00035412,6]
[327658478,1716287444431,-2484.69,0.00035412,6]
[327658479,1716287444440,-3526.89,0.00035412,6]
[327658480,1716287444450,-2609.54,0.00035412,6]
[327658481,1716287444462,-3549.09,0.00035412,6]
[327658482,1716287444471,-500.0,0.00035412,6]
[327658483,1716287444480,-3499.06,0.00035412,6]
[327658485,1716287444490,-500.0,0.00035412,6]
[327658487,1716287444501,-1631.16,0.00035412,6]
[327658489,1716287444510,-2012.9,0.00035412,6]
[327658492,1716287444520,-1118.01,0.00035412,6]
[327658495,1716287444529,-500.0,0.00035412,6]
[327658497,1716287444540,-531.87211391,0.00035412,6]
[327658499,1716287444550,-539.70621056,0.00035412,6]
[327658501,1716287444559,-1184.1,0.00035412,6]
[327658503,1716287444568,-500.0,0.00035412,6]
[327658505,1716287444578,-1402.02,0.00035412,6]
[327658507,1716287444587,-340.73236299,0.00035412,6]
[327658509,1716287444598,-862.14,0.00035412,6]
[327658511,1716287444607,-552.26510736,0.00035412,6]
[327658513,1716287444616,-2189.77,0.00035412,6]
[327658515,1716287444626,-538.85762515,0.00035412,6]
[327658517,1716287444636,-1257.2,0.00035412,6]
[327658519,1716287444645,-500.0,0.00035413,6]
[327658521,1716287444654,-500.0,0.00035413,6]
[327658523,1716287444664,-539.28,0.00035413,6]
[327658525,1716287444673,-500.0,0.00035413,6]
[327658527,1716287444683,-500.0,0.00035413,6]
[327658529,1716287444692,-500.0,0.00035413,6]
[327658531,1716287444701,-500.0,0.00035413,6]
[327658533,1716287444711,-1000.0,0.00035413,6]
[327658535,1716287444720,-1250.08,0.00035413,6]
[327658537,1716287444729,-538.45,0.00035413,6]
[327658539,1716287444739,-1879.83,0.00035413,6]
[327658541,1716287444749,-1688.99,0.00035413,6]
[327658543,1716287444758,-1317.75,0.00035413,6]
[327658545,1716287444767,-1536.33,0.00035413,6]
[327658547,1716287444777,-1681.43,0.00035413,6]
[327658549,1716287444786,-997.1,0.00035413,6]
[327658551,1716287444796,-1122.28,0.00035413,6]
[327658553,1716287444805,-500.0,0.00035413,6]
[327658555,1716287444815,-500.0,0.00035413,6]
[327658557,1716287444824,-2135.39,0.00035413,6]
[327658559,1716287444834,-1366.06,0.00035413,6]
[327658561,1716287444844,-500.0,0.00035413,6]
[327658563,1716287444853,-1528.4,0.00035413,6]
[327658565,1716287444863,-963.06,0.00035413,6]
[327658567,1716287444872,-1009.16,0.00035413,6]
[327658569,1716287444882,-500.0,0.00035413,6]
[327658571,1716287444891,-1069.21,0.00035413,6]
[327658573,1716287444900,-507.69204111,0.00035413,6]
[327658575,1716287444911,-500.0,0.00035413,6]
[327658577,1716287444921,-1116.93,0.00035413,6]
[327658579,1716287444931,-1224.0,0.00035413,6]
[327658581,1716287444941,-1186.7,0.00035413,6]
[327658583,1716287444950,-1159.39,0.00035413,6]
[327658585,1716287444959,-500.0,0.00035413,6]
[327658587,1716287444969,-1565.91,0.00035413,6]
[327658589,1716287444978,-757.88,0.00035413,6]
[327658591,1716287444988,-1448.25,0.00035413,6]
[327658593,1716287444998,-500.0,0.00035413,6]
[327658595,1716287445008,-1387.71,0.00035413,6]
[327658597,1716287445019,-1042.94,0.00035413,6]
[327658600,1716287445029,-500.0,0.00035413,6]
[327658602,1716287445038,-500.0,0.00035413,6]
[327658604,1716287445048,-500.0,0.00035413,6]
[327658606,1716287445058,-500.0,0.00035413,6]
[327658608,1716287445067,-794.63,0.00035413,6]
[327658610,1716287445077,-970.28,0.00035413,6]
[327658612,1716287445087,-1064.08,0.00035413,6]
[327658614,1716287445098,-1025.94,0.00035413,6]
[327658616,1716287445107,-1267.3,0.00035413,6]
[327658618,1716287445117,-644.64,0.00035413,6]
[327658620,1716287445126,-516.70491089,0.00035413,6]
[327658621,1716287445136,-616.18,0.00035413,6]
[327658623,1716287445145,-547.4863158,0.00035413,6]
[327658624,1716287445155,-500.0,0.00035413,6]
[327658625,1716287445165,-500.0,0.00035413,6]
[327658626,1716287445174,-1290.03,0.00035413,6]
[327658627,1716287445184,-2473.95,0.00035413,6]
[327658628,1716287445194,-157.052119,0.00035418,40]
[327658629,1716287445204,-168.052119,0.00035428,42]
[327658630,1716287445215,-150.0,0.00035431,2]
[327658631,1716287445225,-173.052119,0.00035438,42]
[327658632,1716287445235,-41291.68752908,0.00035438,5]
[327658633,1716287445248,-35755.44280392,0.00035438,5]
[327658634,1716287445260,-44296.0013822,0.00035438,5]
[327658635,1716287445430,-746.0,0.00035438,5]
[327658636,1716287445441,-1371.04447154,0.00035438,5]
[327658641,1716287446594,-853.69,0.00035408,3]
[327658642,1716287446603,-74.635,0.00035438,5]
[327658643,1716287446844,-11272.52630829,0.00035438,5]
[327658655,1716287623565,305425.21164245,0.00013,2]
[327658657,1716287648589,153.01,0.00013973,2]
[327658658,1716287717073,-28960.56834285,0.00035,30]
[327658659,1716287717134,-200.0,0.00035194,20]
[327658660,1716287717205,-232479.30435113,0.00035385,19]
[327658661,1716287717274,-159.27257992,0.00035436,120]
[327658662,1716287717334,-1266.62360487,0.00035437,120]
[327658663,1716287717396,-173.052119,0.00035448,42]
[327658664,1716287717456,-471.64569773,0.00035448,36]
[327658665,1716287717516,-150.5,0.00035449,15]
[327658666,1716287717579,-150.5,0.00035449,15]
[327658667,1716287717638,-150.5,0.00035459,15]
[327658668,1716287717696,-150.5,0.00035459,15]
[327658669,1716287717966,-168.5,0.00035465,15]
[327658670,1716287718035,-150.5,0.00035465,15]
[327658671,1716287718098,-150.5,0.00035469,15]
[327658672,1716287718159,-150.5,0.00035469,15]
[327658673,1716287718224,-150.5,0.00035475,15]
[327658674,1716287718286,-150.5,0.00035475,15]
[327658675,1716287718351,-220.86912438,0.00035477,15]
[327658676,1716287718467,-552.38429587,0.00035479,30]
[327658677,1716287718532,-150.5,0.00035485,15]
[327658678,1716287718603,-150.5,0.00035485,15]
[327658679,1716287718668,-165.92,0.00035487,15]
[327658680,1716287718783,-768.09244817,0.000356,30]
[327658681,1716287719042,-150.0,0.00036501,120]
[327658682,1716287719197,-150.0,0.00036967,120]
[327658683,1716287719263,-1200.0,0.00037,38]
[327658684,1716287723537,600.0,0.000338,120]
[327658687,1716287755155,-500.0,0.00035194,10]
[327658688,1716287755220,-200.0,0.00035194,10]
[327658689,1716287755282,-200.0,0.00035194,10]
[327658690,1716287755357,-628.99368354,0.00035436,10]
[327658691,1716287755441,-500.0,0.00035477,14]
[327658692,1716287755567,-1000.0,0.000355,12]
[327658693,1716287755905,-1000.0,0.000356,12]
[327658694,1716287755981,-500.0,0.00035696,14]
[327658695,1716287756055,-1000.0,0.000357,13]
[327658696,1716287756128,-1248.0,0.000358,13]
[327658697,1716287756193,-500.0,0.00035806,14]
[327658698,1716287756270,-575.64272108,0.00035916,14]
[327658699,1716287756340,-998.0,0.00035917,14]
[327658700,1716287756411,-998.0,0.00035972,14]
[327658701,1716287756471,-160.0,0.00036,10]
[327658702,1716287756529,-150.0,0.00036,10]
[327658703,1716287756607,-998.0,0.00036027,14]
[327658704,1716287756676,-998.0,0.00036082,14]
[327658705,1716287756744,-998.0,0.00036136,14]
[327658706,1716287756810,-998.0,0.00036191,14]